bitfinex-derivatives/quotes_ETHF0:USTF0_20260213
["timestamp","ask_amount","ask_price","bid_price","bid_amount"]
[1770965149213,4.60849117,1929.4,1928.8,3.07570707]
[1770965149414,3.97990896,1929.4,1928.8,3.07570707]
[1770965149820,3.13449968,1929.3,1928.8,3.07570707]
[1770965150317,3.13963911,1929.3,1928.8,3.07570707]
[1770965150922,3.13449968,1929.2,1928.8,3.07570707]
[1770965152314,3.13449968,1929.0,1928.7,3.07570707]
[1770965152510,3.13449968,1929.1,1928.7,3.07570707]
[1770965153611,4.60849117,1929.2,1928.7,3.07570707]
[1770965154922,3.13449968,1929.2,1928.7,3.07570707]
[1770965159921,0.00513943,1929.3,1928.7,3.07570707]
[1770965160320,3.13963911,1929.3,1928.7,3.07570707]
[1770965161626,0.00513943,1929.3,1928.7,3.07570707]
[1770965161826,3.14225274,1929.8,1929.0,2.96164882]
[1770965162826,3.1467364,1929.8,1929.0,2.96164882]
[1770965163622,3.14225274,1929.6,1929.0,2.96164882]
[1770965165330,3.14225274,1929.5,1928.9,2.96164882]
[1770965165533,3.14225274,1929.4,1928.9,2.96164882]
[1770965166834,3.14225274,1929.5,1928.9,2.96164882]
[1770965167032,3.14225274,1929.6,1928.9,2.96164882]
[1770965167627,6.22555988,1929.7,1928.9,2.96164882]
[1770965167827,3.14225274,1929.7,1928.9,2.96164882]
[1770965170142,3.1467364,1929.8,1929.1,2.96164882]
[1770965170346,0.00448366,1929.8,1929.1,2.96164882]
[1770965171947,0.00448366,1929.8,1929.3,2.96164882]
[1770965172443,3.14225274,1930.4,1929.7,2.96164882]
[1770965173038,3.14225274,1930.6,1929.7,2.96164882]
[1770965173537,3.14660029,1930.6,1929.9,2.96164882]
[1770965174347,0.00434755,1930.6,1930.1,2.96164882]
[1770965175749,3.14660029,1930.6,1930.1,2.96164882]
[1770965176151,3.14660029,1930.6,1930.0,2.96164882]
[1770965180150,0.00434755,1930.6,1930.0,2.96164882]
[1770965183253,3.14660029,1930.6,1930.0,2.96164882]
[1770965183644,0.00434755,1930.6,1930.0,2.96164882]
[1770965184954,3.14660029,1930.6,1930.0,2.96164882]
[1770965185151,0.00434755,1930.6,1930.0,2.96164882]
[1770965188955,3.06739851,1931.3,1930.0,2.96164882]
[1770965188956,3.14225274,1930.9,1930.0,2.96164882]
[1770965189160,3.14225274,1931.5,1930.1,2.32060127]
[1770965189354,3.14225274,1931.5,1930.2,2.96164882]
[1770965190157,3.14786967,1931.5,1930.2,2.96164882]
[1770965191065,6.18928476,1931.9,1930.8,2.89237875]
[1770965191066,3.09226244,1931.9,1930.8,2.89237875]
[1770965191561,3.09226244,1931.9,1931.0,2.89237875]
[1770965192158,3.09623352,1931.9,1931.0,2.89237875]
[1770965196259,0.00397108,1931.9,1931.0,2.89237875]
[1770965197168,3.11456762,1931.9,1931.0,2.89237875]
[1770965197567,0.00397108,1931.9,1931.0,2.89237875]
[1770965197966,3.11456762,1931.9,1931.0,2.89237875]
[1770965198569,0.00397108,1931.9,1931.0,2.89237875]
[1770965199676,3.11456762,1931.9,1931.0,2.89237875]
[1770965202868,3.37357762,1931.9,1930.6,3.0081258]
[1770965203274,3.11059654,1931.7,1930.6,3.0081258]
[1770965203675,3.11059654,1931.5,1930.6,3.0081258]
[1770965207578,3.11059654,1931.7,1930.6,3.0081258]
[1770965213281,4.93361394,1931.6,1930.6,3.0081258]
[1770965213485,3.11059654,1931.5,1930.6,3.0081258]
[1770965216486,3.11059654,1931.3,1930.6,3.0081258]
[1770965217476,3.11059654,1931.3,1930.4,3.0081258]
[1770965217683,3.11059654,1931.1,1930.4,3.0081258]
[1770965218082,3.11059654,1930.9,1930.4,3.0081258]
[1770965219387,3.11059654,1931.3,1930.4,3.0081258]
[1770965219687,3.11059654,1931.1,1930.4,3.0081258]
[1770965219878,4.94073233,1931.0,1930.4,3.0081258]
[1770965220885,3.02209239,1931.4,1930.7,2.91155899]
[1770965221977,46.19851344,1931.6,1930.7,2.91155899]
[1770965221978,3.02209239,1931.6,1930.7,2.91155899]
[1770965222177,3.02209239,1931.7,1930.7,2.91155899]
[1770965222496,3.02209239,1931.8,1930.8,2.91155899]
[1770965225288,3.02606347,1931.9,1931.0,2.91155899]
[1770965225590,3.02209239,1931.8,1931.0,2.91155899]
[1770965227284,0.00397108,1931.9,1931.3,2.91155899]
[1770965227489,3.02606347,1931.9,1931.3,2.91722306]
[1770965230794,0.00397108,1931.9,1931.3,2.91722306]
[1770965233394,3.02209239,1932.3,1931.5,2.91155899]
[1770965234393,3.02670332,1932.3,1931.5,2.91155899]
[1770965234590,3.02670332,1932.3,1931.4,40.8]
[1770965234791,3.02209239,1932.1,1931.4,40.8]
[1770965235189,3.02209239,1932.1,1931.4,43.71155899]
[1770965235386,3.02209239,1932.1,1931.4,2.91155899]
[1770965242297,3.02209239,1931.6,1930.9,7.74010682]
[1770965242502,3.02209239,1931.6,1930.9,3.8551809]
[1770965243194,3.02209239,1931.6,1930.8,2.91155899]
[1770965243396,5.030302,1931.5,1930.8,2.91802662]
[1770965243595,3.02209239,1931.4,1930.8,2.91802662]
[1770965244103,3.02209239,1931.3,1930.5,2.91155899]
[1770965244399,3.02209239,1931.2,1930.5,2.91155899]
[1770965245189,3.02209239,1931.2,1930.5,2.91621361]
[1770965254696,3.04858083,1931.0,1930.3,3.17850252]
[1770965255804,3.04858083,1931.0,1930.3,3.18456424]
[1770965256508,3.04858083,1931.0,1930.3,0.00606172]
[1770965257108,3.04858083,1931.0,1930.1,3.17850252]
[1770965258009,3.04858083,1931.0,1930.1,3.1843218]
[1770965264127,3.30771083,1931.0,1930.1,0.00581928]
[1770965264326,5.01796647,1930.9,1930.1,3.1843218]
[1770965264532,3.04858083,1930.8,1930.1,3.1843218]
[1770965264925,3.04858083,1930.7,1930.1,3.1843218]
[1770965265125,3.04858083,1930.7,1930.1,0.00581928]
[1770965265725,3.04858083,1930.7,1929.2,3.59243048]
[1770965265726,2.31985866,1930.4,1929.2,3.59243048]
[1770965265929,3.04858083,1930.3,1929.3,3.17850252]
[1770965266928,3.04858083,1930.0,1929.3,0.00473767]
[1770965267539,3.04858083,1929.7,1928.8,3.17850252]
[1770965268427,3.04858083,1929.7,1928.8,3.18333088]
[1770965273233,3.04858083,1930.0,1928.8,3.18333088]
[1770965274831,3.04858083,1930.0,1929.0,3.17850252]
[1770965280836,46.39765429,1930.4,1929.0,3.17850252]
[1770965280837,2.86255304,1930.2,1929.0,3.17850252]
[1770965282841,3.12181304,1930.0,1929.0,3.17850252]
[1770965283240,2.86255304,1929.8,1929.0,3.17850252]
[1770965289343,2.86255304,1930.0,1929.0,3.17850252]
[1770965296255,2.86255304,1930.1,1929.0,3.43788252]
[1770965296450,5.03177298,1930.0,1929.0,3.43788252]
[1770965296657,2.86255304,1930.1,1929.0,3.43788252]
[1770965298256,3.07568879,1930.2,1929.0,3.43788252]
[1770965298453,5.93824183,1930.2,1929.0,3.43788252]
[1770965298649,5.00773073,1930.1,1929.0,3.43788252]
[1770965299057,2.86255304,1930.2,1929.0,3.43788252]
[1770965299656,5.93824183,1930.3,1929.0,3.43788252]
[1770965299857,5.00127276,1930.2,1929.0,3.43788252]
[1770965300156,2.86255304,1930.2,1929.0,3.43788252]
[1770965300556,2.86255304,1930.2,1928.8,17.99725176]
[1770965300557,2.86255304,1930.3,1929.3,3.05012229]
[1770965302653,2.86255304,1930.1,1929.3,3.05012229]
[1770965304758,2.86255304,1930.2,1929.3,3.05012229]
[1770965310953,2.92766349,1930.3,1929.3,3.05012229]
[1770965311159,2.92766349,1930.4,1929.5,2.83547505]
[1770965313762,17.88466349,1930.6,1929.7,2.83547505]
[1770965314464,2.85755049,1930.5,1929.7,2.83547505]
[1770965318178,2.85755049,1930.7,1929.7,2.83547505]
[1770965318475,2.85755049,1930.8,1929.9,3.00011478]
[1770965318780,2.85755049,1930.8,1930.0,3.00011478]
[1770965320679,0.00414751,1930.9,1930.0,3.00011478]
[1770965320883,0.00414751,1930.9,1930.3,3.00011478]
[1770965321088,0.00414751,1930.9,1930.3,3.00438502]
[1770965323378,2.861698,1930.9,1930.3,3.00438502]
[1770965325984,2.861698,1930.9,1930.3,0.00427024]
[1770965327185,2.861698,1930.9,1930.3,3.00438502]
[1770965328084,0.00414751,1930.9,1930.3,3.00438502]
[1770965336390,2.84354747,1931.1,1930.3,3.00438502]
[1770965337490,2.84892423,1931.1,1930.5,3.00011478]
[1770965337797,0.00537676,1931.1,1930.5,3.00011478]
[1770965338998,0.00537676,1931.1,1930.5,4.47266389]
[1770965339197,2.83094604,1930.9,1930.4,3.00011478]
[1770965339396,2.83094604,1930.8,1930.3,3.00438502]
[1770965339987,2.83094604,1930.8,1930.4,3.00011478]
[1770965340399,2.83094604,1930.8,1930.3,1.47681935]
[1770965340400,2.83094604,1930.8,1930.3,3.00438502]
[1770965340998,2.81357844,1930.7,1930.3,0.00427024]
[1770965341697,2.81357844,1930.7,1930.3,2.87238013]
[1770965346598,4.30461434,1931.0,1930.3,2.87238013]
[1770965346901,2.83206523,1931.0,1930.3,2.87238013]
[1770965347296,5.00417553,1930.9,1930.3,2.87238013]
[1770965347496,2.83206523,1931.0,1930.4,1.47254911]
[1770965347796,2.83206523,1931.0,1930.5,2.86810989]
[1770965348196,2.83206523,1930.6,1930.3,2.87238013]
[1770965349702,2.83206523,1930.6,1930.3,0.00427024]
[1770965350603,2.83206523,1930.6,1930.3,2.87238013]
[1770965351098,2.82084986,1930.8,1930.3,2.87238013]
[1770965358007,2.80483369,1930.9,1930.4,2.86810989]
[1770965364408,3.08106555,1931.1,1930.5,2.86810989]
[1770965364600,5.8572466,1931.1,1930.5,2.86810989]
[1770965364910,7.77892542,1931.0,1930.5,2.86810989]
[1770965365110,0.00537676,1931.1,1930.7,2.86810989]
[1770965365310,2.77751795,1931.1,1930.7,2.86810989]
[1770965366007,4.5482379,1931.4,1930.7,2.86810989]
[1770965366203,4.98188396,1931.3,1930.7,2.86810989]
[1770965366410,4.98188396,1931.2,1930.7,2.86810989]
[1770965366610,4.5482379,1931.4,1930.7,2.86810989]
[1770965366810,4.98158758,1931.3,1930.7,2.86810989]
[1770965367008,1.47254911,1931.4,1930.7,2.86810989]
[1770965367208,4.98764303,1931.3,1930.7,2.86810989]
[1770965367412,1.47254911,1931.1,1930.4,2.88549422]
[1770965367616,1.47254911,1931.2,1930.4,2.88549422]
[1770965367906,4.98081809,1931.1,1930.4,2.88549422]
[1770965368209,1.47254911,1931.2,1930.4,2.88549422]
[1770965368410,4.98148324,1931.1,1930.4,2.88549422]
[1770965368612,1.47254911,1931.2,1930.4,2.88549422]
[1770965368905,4.98123517,1931.1,1930.4,2.88549422]
[1770965369101,1.47254911,1931.2,1930.4,2.88549422]
[1770965369304,4.98164402,1931.1,1930.4,2.88549422]
[1770965369509,1.47254911,1931.2,1930.4,2.88549422]
[1770965369707,4.98135476,1931.1,1930.4,2.88549422]
[1770965369907,1.47254911,1931.2,1930.4,2.88549422]
[1770965370108,4.9813931,1931.1,1930.4,2.88549422]
[1770965370310,1.47254911,1931.2,1930.4,2.88549422]
[1770965370510,4.98128806,1931.1,1930.4,2.88549422]
[1770965370707,1.47254911,1931.2,1930.4,2.88549422]
[1770965370908,4.98127382,1931.1,1930.4,2.88549422]
[1770965371107,1.47254911,1931.2,1930.4,2.88549422]
[1770965371408,4.98127248,1931.1,1930.4,2.88549422]
[1770965371609,1.47254911,1931.2,1930.4,2.88549422]
[1770965371811,4.98115919,1931.1,1930.4,2.88549422]
[1770965372010,1.47254911,1931.2,1930.4,2.88549422]
[1770965372212,4.98116133,1931.1,1930.4,2.88549422]
[1770965372510,1.47254911,1931.2,1930.4,2.88549422]
[1770965372710,4.98106914,1931.1,1930.4,2.88549422]
[1770965372911,1.47254911,1931.2,1930.4,2.88549422]
[1770965373112,4.98106952,1931.1,1930.4,2.88549422]
[1770965373313,1.47254911,1931.2,1930.4,2.88549422]
[1770965373612,4.98104181,1931.1,1930.4,2.88549422]
[1770965373816,1.47254911,1931.2,1930.4,2.88549422]
[1770965374009,4.98105527,1931.1,1930.4,2.88549422]
[1770965374205,1.47254911,1931.2,1930.4,2.88549422]
[1770965374410,4.98104772,1931.1,1930.4,2.88549422]
[1770965374620,1.47254911,1931.2,1930.4,2.88549422]
[1770965374811,4.98104772,1931.1,1930.4,2.88549422]
[1770965375012,1.47254911,1931.2,1930.4,2.88549422]
[1770965375315,4.98104772,1931.1,1930.4,2.88549422]
[1770965375517,1.47254911,1931.2,1930.4,2.88549422]
[1770965375717,4.98108339,1931.1,1930.4,2.88549422]
[1770965375918,1.47254911,1931.2,1930.4,2.88549422]
[1770965376114,4.98108418,1931.1,1930.4,2.88549422]
[1770965376316,1.47254911,1931.2,1930.4,2.88549422]
[1770965376516,4.98110108,1931.1,1930.4,2.88549422]
[1770965376717,1.47254911,1931.2,1930.4,2.88549422]
[1770965376917,4.98109895,1931.1,1930.4,2.88549422]
[1770965377118,1.47254911,1931.2,1930.4,2.88549422]
[1770965377319,4.98109665,1931.1,1930.4,2.88549422]
[1770965377518,1.47254911,1931.2,1930.4,2.88549422]
[1770965377721,4.98122287,1931.1,1930.4,2.88549422]
[1770965377923,1.47254911,1931.2,1930.4,2.88549422]
[1770965378217,4.98123301,1931.1,1930.4,2.88549422]
[1770965378423,1.47254911,1931.2,1930.4,2.88549422]
[1770965378624,4.98139877,1931.1,1930.4,2.88549422]
[1770965378824,1.47254911,1931.2,1930.4,2.88549422]
[1770965379030,4.98201181,1931.1,1930.4,2.88549422]
[1770965379325,1.47254911,1931.2,1930.4,2.88549422]
[1770965379525,4.98211577,1931.1,1930.4,2.88549422]
[1770965379727,1.47254911,1931.2,1930.4,2.88549422]
[1770965380026,4.98213859,1931.1,1930.4,2.88549422]
[1770965380223,1.47254911,1931.2,1930.4,2.88549422]
[1770965380424,4.982317,1931.1,1930.4,2.88549422]
[1770965380625,1.47254911,1931.2,1930.4,2.88549422]
[1770965380822,4.98234062,1931.1,1930.4,2.88549422]
[1770965381130,1.47254911,1931.2,1930.4,2.88549422]
[1770965381332,4.98244765,1931.1,1930.4,2.88549422]
[1770965381530,1.47254911,1931.2,1930.4,2.88549422]
[1770965381731,4.98274756,1931.1,1930.4,2.88549422]
[1770965382028,1.47254911,1931.2,1930.4,2.88549422]
[1770965382232,4.98274975,1931.1,1930.4,2.88549422]
[1770965382431,1.47254911,1931.2,1930.4,2.88549422]
[1770965382633,4.9829047,1931.1,1930.4,2.88549422]
[1770965382935,1.47254911,1931.2,1930.4,2.88549422]
[1770965383136,4.98276825,1931.1,1930.4,2.88549422]
[1770965383337,1.47254911,1931.2,1930.4,2.88549422]
[1770965383538,4.98301599,1931.1,1930.4,2.88549422]
[1770965383727,0.00580304,1931.3,1930.8,2.85295829]
[1770965385040,0.00580304,1931.3,1931.1,2.85116155]
[1770965385245,4.5482379,1931.8,1931.1,2.85116155]
[1770965385538,4.98193463,1931.7,1931.1,2.85116155]
[1770965385740,4.98193463,1931.6,1931.1,2.85116155]
[1770965385936,1.47254911,1931.6,1931.1,2.85116155]
[1770965386131,1.47672456,1931.6,1931.1,2.85116155]
[1770965386535,0.00417545,1931.6,1931.1,2.85116155]
[1770965387937,4.5482379,1932.0,1931.4,2.86086708]
[1770965388143,4.97138366,1931.9,1931.4,2.86086708]
[1770965388344,1.47254911,1931.9,1931.4,2.86086708]
[1770965388639,1.47254911,1931.8,1931.2,2.86190648]
[1770965388840,1.47254911,1931.7,1931.2,2.86190648]
[1770965389745,1.47889838,1931.8,1931.2,2.86190648]
[1770965390539,0.00634927,1931.8,1931.2,2.86190648]
[1770965390941,0.00634927,1931.8,1931.2,4.33445559]
[1770965391242,0.00634927,1931.8,1931.3,2.87707868]
[1770965391747,1.47889838,1931.8,1931.3,2.87707868]
[1770965392948,0.00634927,1931.8,1931.3,2.87707868]
[1770965397249,1.47254911,1931.5,1930.9,2.88441355]
[1770965397442,1.47254911,1931.0,1930.5,2.88441355]
[1770965397649,1.47254911,1930.9,1930.4,2.88441355]
[1770965397843,1.47254911,1930.7,1930.3,2.88868379]
[1770965398249,1.47254911,1930.9,1930.3,2.88868379]
[1770965398950,1.47318558,1931.1,1930.3,2.88868379]
[1770965400055,19.65587437,1931.2,1930.3,2.88868379]
[1770965400254,3.07568879,1931.3,1930.5,2.80079876]
[1770965400443,18.18568879,1931.5,1930.5,2.80079876]
[1770965400751,18.18968879,1931.7,1930.7,2.80079876]
[1770965400947,4.95089477,1931.6,1930.8,1.47318558]
[1770965401152,15.114,1931.7,1930.9,2.80063813]
[1770965401354,0.00634927,1931.8,1930.9,2.80063813]
[1770965401950,0.02754999,1931.7,1930.9,2.80063813]
[1770965402347,0.00634927,1931.8,1931.1,2.76001158]
[1770965407354,0.00634927,1931.8,1931.2,2.77732613]
[1770965416670,3.07803607,1932.1,1931.3,2.78630787]
[1770965416862,8.03638588,1932.1,1931.3,2.78630787]
[1770965417674,8.04287683,1932.1,1931.3,2.78630787]
[1770965417865,4.95834981,1932.0,1931.3,2.78630787]
[1770965418171,3.08452702,1932.1,1931.3,2.78630787]
[1770965418469,4.95502664,1932.0,1931.3,2.78630787]
[1770965418669,3.08452702,1932.1,1931.3,2.78630787]
[1770965418864,4.95487939,1932.0,1931.3,2.78630787]
[1770965419064,3.08452702,1932.1,1931.3,2.78630787]
[1770965419368,4.95387061,1932.0,1931.3,2.78630787]
[1770965419569,3.08452702,1932.1,1931.3,2.78630787]
[1770965419771,4.95370986,1932.0,1931.3,2.78630787]
[1770965420071,0.00649095,1932.1,1931.3,2.78630787]
[1770965420272,4.95412525,1932.0,1931.3,2.78630787]
[1770965420473,0.00649095,1932.1,1931.3,2.78630787]
[1770965420672,4.95474996,1932.0,1931.3,2.78630787]
[1770965420872,0.00649095,1932.1,1931.3,2.78630787]
[1770965421072,4.9547236,1932.0,1931.3,2.78630787]
[1770965421274,0.00649095,1932.1,1931.3,2.78630787]
[1770965421473,4.954631,1932.0,1931.3,2.78630787]
[1770965421773,0.00649095,1932.1,1931.3,2.78630787]
[1770965422070,4.95446527,1932.0,1931.3,2.78630787]
[1770965422264,0.00649095,1932.1,1931.3,2.78630787]
[1770965422468,4.95437194,1932.0,1931.3,2.78630787]
[1770965422672,0.00649095,1932.1,1931.3,2.78630787]
[1770965422977,0.00649095,1932.1,1931.5,2.8133808]
[1770965423278,4.95431524,1932.0,1931.5,2.8133808]
[1770965423573,4.55849895,1932.1,1931.5,2.8133808]
[1770965423771,4.95504818,1932.0,1931.5,2.8133808]
[1770965423972,4.55849895,1932.1,1931.5,2.8133808]
[1770965424176,4.95508123,1932.0,1931.5,2.8133808]
[1770965424375,4.55849895,1932.1,1931.5,2.8133808]
[1770965424571,4.95506975,1932.0,1931.5,2.8133808]
[1770965424770,4.55849895,1932.1,1931.5,2.8133808]
[1770965424971,4.95451516,1932.0,1931.5,2.8133808]
[1770965425168,4.55849895,1932.1,1931.5,2.8133808]
[1770965425372,4.95463177,1932.0,1931.5,2.8133808]
[1770965425573,4.55849895,1932.1,1931.5,2.8133808]
[1770965425774,4.95459459,1932.0,1931.5,2.8133808]
[1770965425974,4.55849895,1932.1,1931.5,2.8133808]
[1770965426173,4.95458878,1932.0,1931.5,2.8133808]
[1770965426373,4.55849895,1932.1,1931.5,2.8133808]
[1770965426578,4.95453585,1932.0,1931.5,2.8133808]
[1770965426772,4.55849895,1932.1,1931.5,2.8133808]
[1770965426973,4.95438394,1932.0,1931.5,2.8133808]
[1770965427272,4.55849895,1932.1,1931.5,2.8133808]
[1770965427480,4.95438127,1932.0,1931.0,0.25912]
[1770965427778,4.95438127,1932.0,1930.9,54.671]
[1770965427779,6.42746618,1931.9,1931.1,2.82130341]
[1770965427978,1.47318558,1931.9,1931.1,2.82130341]
[1770965428580,1.47318558,1931.6,1931.1,2.82130341]
[1770965428778,1.47318558,1931.6,1930.8,2.8209444]
[1770965428983,4.95868475,1931.5,1930.8,2.8209444]
[1770965429180,1.47318558,1931.6,1930.8,2.8209444]
[1770965429181,16.66518558,1931.6,1930.8,2.8209444]
[1770965429380,4.96861203,1931.5,1930.8,2.8209444]
[1770965429580,4.96861203,1931.4,1930.8,2.8209444]
[1770965429880,19.744008,1931.6,1930.8,2.8209444]
[1770965430091,4.96608284,1931.5,1930.8,2.8209444]
[1770965430283,4.96608284,1931.4,1930.8,2.8209444]
[1770965430585,3.07882242,1931.7,1930.9,2.84085602]
[1770965430776,4.96454521,1931.7,1930.9,2.84085602]
[1770965430982,3.07882242,1931.9,1930.9,2.84085602]
[1770965431379,8.04400704,1931.9,1930.9,2.84085602]
[1770965431674,8.04400704,1931.9,1931.1,2.84061203]
[1770965432181,4.96518462,1931.8,1931.1,2.84061203]
[1770965432381,4.552008,1932.0,1931.1,2.84061203]
[1770965432583,4.96578599,1931.9,1931.1,2.84061203]
[1770965432782,4.96578599,1931.8,1931.1,2.84061203]
[1770965432985,3.07882242,1932.0,1931.1,2.84061203]
[1770965433180,8.02528463,1932.0,1931.1,2.84061203]
[1770965437989,4.94646221,1931.9,1931.1,2.84061203]
[1770965438183,3.08531337,1932.1,1931.1,2.84061203]
[1770965438489,4.94687283,1932.0,1931.1,2.84061203]
[1770965438686,4.94687283,1931.9,1931.1,2.84061203]
[1770965438888,3.08531337,1932.1,1931.1,2.84061203]
[1770965439187,4.94690923,1932.0,1931.1,2.84061203]
[1770965439484,4.94690923,1931.9,1931.3,2.82676349]
[1770965439683,3.08531337,1932.1,1931.3,2.82676349]
[1770965439883,4.94684328,1932.0,1931.3,2.82676349]
[1770965440082,4.94684328,1931.9,1931.3,2.82676349]
[1770965440285,3.08531337,1932.1,1931.3,2.82676349]
[1770965440483,4.94678819,1932.0,1931.3,2.82676349]
[1770965440786,4.94678819,1931.9,1931.3,2.82676349]
[1770965440986,3.08531337,1932.1,1931.3,2.82676349]
[1770965441177,4.94678066,1932.0,1931.3,2.82676349]
[1770965441380,4.94678066,1931.9,1931.3,2.82676349]
[1770965441582,3.08531337,1932.1,1931.3,2.82676349]
[1770965441782,4.94677335,1932.0,1931.3,2.82676349]
[1770965441983,4.94677335,1931.9,1931.3,2.82676349]
[1770965442182,49.37872478,1932.1,1931.3,2.82676349]
[1770965442484,4.94684147,1932.0,1931.3,2.82676349]
[1770965442686,4.94684147,1931.9,1931.3,2.82676349]
[1770965442888,49.37872478,1932.1,1931.3,2.82676349]
[1770965443190,4.94193993,1932.0,1931.3,2.82676349]
[1770965443390,4.94193993,1931.9,1931.3,2.82676349]
[1770965443689,49.37872478,1932.1,1931.3,2.82676349]
[1770965443889,4.94188141,1932.0,1931.3,2.82676349]
[1770965444092,3.08531337,1932.1,1931.3,2.82676349]
[1770965444093,0.00649095,1932.1,1931.3,2.82676349]
[1770965450387,0.00649095,1932.1,1931.5,2.79773576]
[1770965450586,0.00649095,1932.1,1931.6,2.79773576]
[1770965451190,3.08572974,1932.6,1931.6,2.79773576]
[1770965451384,4.9338451,1932.5,1931.6,2.79773576]
[1770965451590,18.39772974,1932.7,1931.6,2.79773576]
[1770965451891,4.93302993,1932.6,1931.6,2.79773576]
[1770965452095,0.00667552,1932.6,1931.7,2.79377259]
[1770965452291,0.00667552,1932.6,1931.7,2.80000186]
[1770965452498,0.00667552,1932.6,1931.9,2.79377259]
[1770965452991,0.00667552,1932.6,1931.8,2.79369854]
[1770965456393,1.47042235,1932.5,1931.8,2.79369854]
[1770965456597,1.47709787,1932.6,1931.8,2.79369854]
[1770965456993,0.00667552,1932.6,1931.8,2.79369854]
[1770965458786,0.00667552,1932.6,1931.9,2.81514327]
[1770965460892,0.00667552,1932.6,1932.2,2.81090779]
[1770965461487,1.47030527,1932.9,1932.2,4.28121306]
[1770965461693,1.32221289,1933.0,1932.4,2.81079473]
[1770965461893,2.79251816,1933.0,1932.4,2.81079473]
[1770965462491,2.79893977,1933.0,1932.4,2.81079473]
[1770965462697,0.00642161,1933.0,1932.7,2.77169747]
[1770965462893,1.47030527,1933.4,1932.8,2.77169747]
[1770965463992,1.47030527,1933.3,1932.8,2.77169747]
[1770965465002,0.00432843,1933.4,1932.8,2.77169747]
[1770965467103,3.07344945,1933.9,1932.8,2.77169747]
[1770965467298,0.25871,1934.1,1933.0,2.77110692]
[1770965468108,0.26361088,1934.1,1933.0,2.77110692]
[1770965468312,0.00490088,1934.1,1933.3,2.75022681]
[1770965468513,0.00490088,1934.1,1933.3,2.7564317]
[1770965469411,15.60986084,1934.8,1933.5,2.75019732]
[1770965469617,15.60986084,1934.8,1933.7,2.75019732]
[1770965470220,0.26686084,1934.8,1933.7,2.75019732]
[1770965470513,0.26686084,1934.8,1933.6,2.31444545]
[1770965470514,0.27193225,1934.8,1934.0,2.76399953]
[1770965472917,2.31444545,1934.5,1933.6,2.748027]
[1770965473621,2.57308545,1934.7,1933.6,2.748027]
[1770965475618,0.25864,1934.7,1933.6,2.748027]
[1770965476018,0.27193225,1934.8,1933.6,5.06247245]
[1770965476222,0.27193225,1934.8,1933.7,2.77675141]
[1770965477316,2.5863777,1934.8,1933.7,2.77675141]
[1770965480324,0.27193225,1934.8,1933.7,2.77675141]
[1770965482120,2.31444545,1934.7,1933.7,2.77675141]
[1770965482420,2.31444545,1934.5,1933.7,2.77675141]
[1770965483426,0.25864,1934.6,1933.7,2.77675141]
[1770965483727,2.31444545,1934.7,1933.7,2.77675141]
[1770965483927,0.27193225,1934.8,1933.7,2.77675141]
[1770965485629,0.27193225,1934.8,1933.8,2.76154149]
[1770965486929,0.27193225,1934.8,1934.0,2.75779242]
[1770965488728,0.27193225,1934.8,1934.2,2.75728684]
[1770965488926,15.386,1935.3,1934.2,2.75728684]
[1770965489427,3.33196945,1935.6,1934.4,2.62129259]
[1770965489631,4.89583337,1935.5,1934.4,2.62129259]
[1770965489827,0.00549674,1935.5,1934.4,2.62129259]
[1770965490029,2.31444545,1935.3,1934.4,2.62129259]
[1770965490734,2.31444545,1935.1,1934.4,2.62129259]
[1770965491426,3.33200945,1935.2,1934.4,2.62129259]
[1770965491629,4.89851026,1935.1,1934.4,2.62129259]
[1770965491822,0.25856,1935.2,1934.4,2.62129259]
[1770965492029,4.89853124,1935.1,1934.4,2.62129259]
[1770965492233,3.33200945,1935.2,1934.4,2.62129259]
[1770965492433,4.90244561,1935.1,1934.4,2.62129259]
[1770965492735,3.33200945,1935.2,1934.4,2.62129259]
[1770965493035,4.90273561,1935.1,1934.4,2.62129259]
[1770965493236,4.90273561,1935.0,1934.4,2.62129259]
[1770965493536,3.33200945,1935.2,1934.4,2.62129259]
[1770965493735,4.90587105,1935.1,1934.4,2.62129259]
[1770965493936,4.90587105,1935.0,1934.4,2.62129259]
[1770965494134,4.90901366,1934.9,1933.9,2.63066368]
[1770965494428,3.07344945,1935.1,1933.9,2.63066368]
[1770965494633,4.90973384,1935.0,1933.9,2.63066368]
[1770965494835,4.90972954,1934.9,1933.9,2.63066368]
[1770965495034,3.07344945,1935.1,1933.9,2.63066368]
[1770965495234,49.36686086,1935.1,1933.9,2.63066368]
[1770965495434,4.9136715,1935.0,1933.9,2.63066368]
[1770965495634,4.9136715,1934.9,1933.9,2.63066368]
[1770965495934,49.36686086,1935.1,1933.9,2.63066368]
[1770965496135,7.98711053,1935.0,1933.9,2.63066368]
[1770965496723,0.2586,1934.9,1933.9,2.63066368]
[1770965496930,49.62546086,1934.9,1933.9,2.63066368]
[1770965497131,7.98711053,1934.8,1933.9,2.63066368]
[1770965498233,49.36686086,1934.8,1933.9,2.63066368]
[1770965498430,7.98711053,1934.8,1933.9,2.63066368]
[1770965498729,3.07344945,1934.7,1933.9,2.63066368]
[1770965499532,3.07344945,1934.6,1933.9,2.63066368]
[1770965501332,49.36686086,1934.6,1933.9,2.63066368]
[1770965501534,3.07344945,1934.5,1933.9,2.63066368]
[1770965501734,3.07344945,1934.4,1933.9,2.63066368]
[1770965502839,4.91366108,1934.3,1933.9,2.63066368]
[1770965503135,49.36686086,1934.5,1933.9,2.63066368]
[1770965503535,4.92792085,1934.4,1933.9,2.63066368]
[1770965503735,4.92792085,1934.3,1933.9,2.63066368]
[1770965503931,3.07344945,1934.5,1933.9,2.63066368]
[1770965504837,3.07344945,1934.7,1933.9,2.63066368]
[1770965505038,8.00104219,1934.7,1933.9,2.63066368]
[1770965505238,4.92759274,1934.6,1933.9,2.63066368]
[1770965505438,3.07344945,1934.7,1933.9,2.63066368]
[1770965505642,3.07344945,1934.9,1934.1,2.61154986]
[1770965505829,4.92860621,1934.8,1934.1,2.61154986]
[1770965506036,49.36686086,1935.0,1934.1,2.61154986]
[1770965506241,8.002067,1934.9,1934.1,2.61154986]
[1770965506539,4.92861755,1934.8,1934.1,2.61154986]
[1770965506840,49.36686086,1935.0,1934.1,2.61154986]
[1770965507041,3.07344945,1934.9,1934.1,2.61154986]
[1770965508737,4.92834603,1934.8,1934.1,2.61154986]
[1770965509041,3.07344945,1935.0,1934.1,2.61154986]
[1770965509339,3.07344945,1934.9,1934.1,2.61154986]
[1770965510941,54.29385286,1935.0,1934.1,2.61154986]
[1770965511743,4.926992,1934.9,1934.1,2.61154986]
[1770965512043,4.926992,1934.8,1934.1,2.61154986]
[1770965512248,49.36686086,1935.2,1934.3,2.64004467]
[1770965512545,3.07344945,1935.3,1934.5,2.64004467]
[1770965513337,4.92710789,1935.2,1934.5,2.64004467]
[1770965513540,3.07344945,1935.4,1934.5,2.64004467]
[1770965514335,7.99999779,1935.4,1934.5,2.64004467]
[1770965514640,4.92654834,1935.3,1934.5,2.64004467]
[1770965514839,4.92654834,1935.2,1934.5,2.64004467]
[1770965515045,3.07344945,1935.4,1934.5,2.64004467]
[1770965515046,3.07344945,1935.3,1934.5,2.64004467]
[1770965515742,54.29184884,1935.3,1934.5,2.64004467]
[1770965515943,7.99843743,1935.2,1934.5,2.64004467]